[Event "Titled Tuesday Blitz February 22 Early 2022"]
[White "Osmonbekov, Talaibek"]
[Black "Guseva, Marina"]
[WhiteFideId "2017253"]
[BlackFideId "4149351"]
[WhiteElo "2135"]
[BlackElo "2232"]
[Result "1-0"]
[Round "10"]
[TimeControl "180+1"]
[Date "2022.02.22"]
[WhiteClock "0:00:06"]
[BlackClock "0:00:38"]

1. d4 {[%clk 0:03:00]}  d5 {[%clk 0:02:58]} 2. Nc3 {[%clk 0:03:00]}  Nf6 {[%clk 0:02:55]} 3. Bf4 {[%clk 0:03:00]}  c5 {[%clk 0:02:54]} 4. e3 {[%clk 0:03:00]}  a6 {[%clk 0:02:54]} 5. Nf3 {[%clk 0:03:00]}  cxd4 {[%clk 0:02:54]} 6. exd4 {[%clk 0:03:00]}  Nc6 {[%clk 0:02:53]} 7. Ne5 {[%clk 0:02:56]}  h6 {[%clk 0:02:45]} 8. Be2 {[%clk 0:02:48]}  Bf5 {[%clk 0:02:44]} 9. O-O {[%clk 0:02:45]}  e6 {[%clk 0:02:44]} 10. Re1 {[%clk 0:02:38]}  Bb4 {[%clk 0:02:39]} 11. a3 {[%clk 0:02:12]}  Ba5 {[%clk 0:02:28]} 12. b4 {[%clk 0:02:07]}  Bc7 {[%clk 0:02:23]} 13. Nxc6 {[%clk 0:01:47]}  bxc6 {[%clk 0:02:22]} 14. Bxc7 {[%clk 0:01:45]}  Qxc7 {[%clk 0:02:21]} 15. Bd3 {[%clk 0:01:45]}  Bxd3 {[%clk 0:02:13]} 16. Qxd3 {[%clk 0:01:46]}  O-O {[%clk 0:02:12]} 17. Na4 {[%clk 0:01:46]}  a5 {[%clk 0:02:11]} 18. Nc5 {[%clk 0:01:45]}  Nd7 {[%clk 0:02:11]} 19. c4 {[%clk 0:01:31]}  Nb6 {[%clk 0:02:09]} 20. cxd5 {[%clk 0:01:23]}  cxd5 {[%clk 0:02:00]} 21. g3 {[%clk 0:00:37]}  axb4 {[%clk 0:01:55]} 22. axb4 {[%clk 0:00:37]}  Nc4 {[%clk 0:01:55]} 23. b5 {[%clk 0:00:28]}  Ra5 {[%clk 0:01:31]} 24. Rxa5 {[%clk 0:00:19]}  Qxa5 {[%clk 0:01:31]} 25. Rb1 {[%clk 0:00:20]}  Rb8 {[%clk 0:01:29]} 26. Qb3 {[%clk 0:00:19]}  Nd2 {[%clk 0:01:25]} 27. Qb4 {[%clk 0:00:19]}  Qa2 {[%clk 0:01:22]} 28. Rd1 {[%clk 0:00:09]}  Nc4 {[%clk 0:01:11]} 29. Nd7 {[%clk 0:00:08]}  Rd8 {[%clk 0:01:09]} 30. Nc5 {[%clk 0:00:08]}  Qe2 {[%clk 0:01:07]} 31. Re1 {[%clk 0:00:07]}  Qg4 {[%clk 0:01:05]} 32. b6 {[%clk 0:00:05]}  Qxd4 {[%clk 0:01:02]} 33. b7 {[%clk 0:00:05]}  Rb8 {[%clk 0:00:49]} 34. Na6 {[%clk 0:00:05]}  Rxb7 {[%clk 0:00:41]} 35. Qxb7 {[%clk 0:00:06]}  Qd2 {[%clk 0:00:41]} 36. Qb8+ {[%clk 0:00:07]}  Kh7 {[%clk 0:00:40]} 37. Qb1+ {[%clk 0:00:07]}  g6 {[%clk 0:00:39]} 38. Nc5 {[%clk 0:00:07]}  Ne5 {[%clk 0:00:38]} 39. Rxe5 {[%clk 0:00:06]} 1-0


[Site "https://www.chess.com"]

[Event "Titled Tuesday Blitz February 22 Early 2022"]
[White "Petrovic, Aleksa"]
[Black "Zheenbekov, Nurgazy"]
[WhiteFideId "967629"]
[BlackFideId "13800485"]
[WhiteElo "2139"]
[BlackElo "1959"]
[Result "1-0"]
[Round "10"]
[TimeControl "180+1"]
[Date "2022.02.22"]
[WhiteClock "0:00:19"]
[BlackClock "0:00:08"]

1. d4 {[%clk 0:03:00]}  Nf6 {[%clk 0:02:53]} 2. c4 {[%clk 0:03:00]}  e6 {[%clk 0:02:53]} 3. Nf3 {[%clk 0:02:59]}  b6 {[%clk 0:02:52]} 4. g3 {[%clk 0:02:58]}  Ba6 {[%clk 0:02:53]} 5. Qc2 {[%clk 0:02:58]}  b5 {[%clk 0:02:48]} 6. cxb5 {[%clk 0:02:50]}  Bxb5 {[%clk 0:02:47]} 7. Nc3 {[%clk 0:02:46]}  Bb4 {[%clk 0:02:29]} 8. Bg2 {[%clk 0:02:45]}  O-O {[%clk 0:02:28]} 9. O-O {[%clk 0:02:43]}  Bxc3 {[%clk 0:02:21]} 10. bxc3 {[%clk 0:02:43]}  d5 {[%clk 0:02:21]} 11. a4 {[%clk 0:02:34]}  Ba6 {[%clk 0:02:19]} 12. Ba3 {[%clk 0:02:32]}  Re8 {[%clk 0:02:18]} 13. Ne5 {[%clk 0:02:32]}  Nfd7 {[%clk 0:02:14]} 14. e4 {[%clk 0:02:21]}  Nxe5 {[%clk 0:02:09]} 15. dxe5 {[%clk 0:02:20]}  Bxf1 {[%clk 0:02:09]} 16. Rxf1 {[%clk 0:02:19]}  c6 {[%clk 0:02:06]} 17. Bd6 {[%clk 0:02:13]}  Nd7 {[%clk 0:02:03]} 18. Rb1 {[%clk 0:02:10]}  Nb6 {[%clk 0:01:50]} 19. Bf1 {[%clk 0:02:10]}  f6 {[%clk 0:01:37]} 20. exd5 {[%clk 0:01:59]}  exd5 {[%clk 0:01:30]} 21. Bd3 {[%clk 0:01:56]}  fxe5 {[%clk 0:01:19]} 22. Bxh7+ {[%clk 0:01:55]}  Kh8 {[%clk 0:01:19]} 23. Bg6 {[%clk 0:01:30]}  Qxd6 {[%clk 0:01:17]} 24. Qf5 {[%clk 0:01:29]}  Kg8 {[%clk 0:00:46]} 25. Bh7+ {[%clk 0:01:14]}  Kh8 {[%clk 0:00:45]} 26. Bg6 {[%clk 0:01:15]}  Qe6 {[%clk 0:00:27]} 27. Qh5+ {[%clk 0:00:53]}  Kg8 {[%clk 0:00:26]} 28. Qh7+ {[%clk 0:00:54]}  Kf8 {[%clk 0:00:26]} 29. Qh8+ {[%clk 0:00:43]}  Ke7 {[%clk 0:00:17]} 30. Qxg7+ {[%clk 0:00:42]}  Kd6 {[%clk 0:00:18]} 31. Bxe8 {[%clk 0:00:39]}  Rxe8 {[%clk 0:00:18]} 32. Qxa7 {[%clk 0:00:36]}  Nc4 {[%clk 0:00:12]} 33. a5 {[%clk 0:00:34]}  e4 {[%clk 0:00:09]} 34. a6 {[%clk 0:00:22]}  Nd2 {[%clk 0:00:09]} 35. Rb8 {[%clk 0:00:20]}  Nf3+ {[%clk 0:00:08]} 36. Kg2 {[%clk 0:00:19]} 1-0


[Site "https://www.chess.com"]

[Event "Titled Tuesday Blitz February 22 Early 2022"]
[White "Piesik, Piotr"]
[Black "Tregubov, Pavel V."]
[WhiteFideId "1136194"]
[BlackFideId "4115341"]
[WhiteElo "2232"]
[BlackElo "2341"]
[Result "0-1"]
[Round "10"]
[TimeControl "180+1"]
[Date "2022.02.22"]
[WhiteClock "0:00:13"]
[BlackClock "0:00:15"]

1. Nf3 {[%clk 0:02:57]}  c5 {[%clk 0:02:58]} 2. g3 {[%clk 0:02:57]}  Nc6 {[%clk 0:02:58]} 3. Bg2 {[%clk 0:02:58]}  e5 {[%clk 0:02:58]} 4. O-O {[%clk 0:02:58]}  d5 {[%clk 0:02:56]} 5. d3 {[%clk 0:02:59]}  Nf6 {[%clk 0:02:55]} 6. Nbd2 {[%clk 0:02:59]}  Be7 {[%clk 0:02:53]} 7. e4 {[%clk 0:02:59]}  O-O {[%clk 0:02:53]} 8. c3 {[%clk 0:02:59]}  d4 {[%clk 0:02:51]} 9. Nc4 {[%clk 0:02:59]}  Qc7 {[%clk 0:02:51]} 10. cxd4 {[%clk 0:02:59]}  cxd4 {[%clk 0:02:51]} 11. Bg5 {[%clk 0:02:59]}  b5 {[%clk 0:02:45]} 12. Ncd2 {[%clk 0:02:53]}  Be6 {[%clk 0:02:32]} 13. Nb3 {[%clk 0:02:49]}  Nd7 {[%clk 0:02:22]} 14. Rc1 {[%clk 0:02:45]}  f6 {[%clk 0:02:14]} 15. Bd2 {[%clk 0:02:45]}  Qb6 {[%clk 0:02:10]} 16. Nh4 {[%clk 0:02:42]}  Rfc8 {[%clk 0:02:08]} 17. Nf5 {[%clk 0:02:40]}  Bf8 {[%clk 0:02:07]} 18. f4 {[%clk 0:02:40]}  g6 {[%clk 0:01:56]} 19. Nh4 {[%clk 0:02:38]}  a5 {[%clk 0:01:52]} 20. f5 {[%clk 0:02:35]}  Bf7 {[%clk 0:01:48]} 21. fxg6 {[%clk 0:02:35]}  hxg6 {[%clk 0:01:48]} 22. Bh3 {[%clk 0:02:35]}  Rc7 {[%clk 0:01:39]} 23. Bxd7 {[%clk 0:02:35]}  Rxd7 {[%clk 0:01:38]} 24. Qg4 {[%clk 0:02:31]}  Rd6 {[%clk 0:01:09]} 25. Nxg6 {[%clk 0:02:29]}  Be6 {[%clk 0:01:05]} 26. Qh5 {[%clk 0:02:20]}  Bg7 {[%clk 0:01:05]} 27. Rxc6 {[%clk 0:02:16]}  Rxc6 {[%clk 0:01:05]} 28. Ne7+ {[%clk 0:02:16]}  Kf8 {[%clk 0:01:06]} 29. Nxc6 {[%clk 0:02:08]}  Qxc6 {[%clk 0:01:06]} 30. Bxa5 {[%clk 0:02:06]}  Bxb3 {[%clk 0:01:04]} 31. Bb4+ {[%clk 0:02:06]}  Kg8 {[%clk 0:01:02]} 32. axb3 {[%clk 0:02:05]}  Qc2 {[%clk 0:01:01]} 33. Qf3 {[%clk 0:01:51]}  Qxb2 {[%clk 0:00:56]} 34. Rf2 {[%clk 0:01:42]}  Qxb3 {[%clk 0:00:54]} 35. Be7 {[%clk 0:01:42]}  Qe6 {[%clk 0:00:52]} 36. Bc5 {[%clk 0:01:30]}  Rc8 {[%clk 0:00:40]} 37. Bb4 {[%clk 0:01:27]}  Qb3 {[%clk 0:00:39]} 38. Be7 {[%clk 0:01:26]}  Qe6 {[%clk 0:00:39]} 39. Bb4 {[%clk 0:01:26]}  Qb3 {[%clk 0:00:39]} 40. Be7 {[%clk 0:01:23]}  Rc1+ {[%clk 0:00:27]} 41. Kg2 {[%clk 0:01:23]}  Qd1 {[%clk 0:00:27]} 42. Qf5 {[%clk 0:01:11]}  Rc2 {[%clk 0:00:18]} 43. Bxf6 {[%clk 0:00:58]}  Rxf2+ {[%clk 0:00:16]} 44. Qxf2 {[%clk 0:00:58]}  Qxd3 {[%clk 0:00:17]} 45. Qf5 {[%clk 0:00:51]}  Bxf6 {[%clk 0:00:16]} 46. Qxf6 {[%clk 0:00:45]}  Qxe4+ {[%clk 0:00:16]} 47. Kg1 {[%clk 0:00:37]}  Qd5 {[%clk 0:00:15]} 48. Qg6+ {[%clk 0:00:29]}  Kf8 {[%clk 0:00:16]} 49. Qf6+ {[%clk 0:00:29]}  Ke8 {[%clk 0:00:16]} 50. Qh8+ {[%clk 0:00:28]}  Kd7 {[%clk 0:00:16]} 51. Qg7+ {[%clk 0:00:27]}  Kc6 {[%clk 0:00:16]} 52. Qg6+ {[%clk 0:00:24]}  Kc5 {[%clk 0:00:16]} 53. Qc2+ {[%clk 0:00:23]}  Kb4 {[%clk 0:00:16]} 54. Qd2+ {[%clk 0:00:22]}  Kb3 {[%clk 0:00:15]} 55. Qd3+ {[%clk 0:00:23]}  Ka4 {[%clk 0:00:16]} 56. Qc2+ {[%clk 0:00:19]}  Qb3 {[%clk 0:00:15]} 57. Qc5 {[%clk 0:00:16]}  d3 {[%clk 0:00:14]} 58. Qxe5 {[%clk 0:00:12]}  Qd1+ {[%clk 0:00:13]} 59. Kf2 {[%clk 0:00:11]}  Qe2+ {[%clk 0:00:13]} 60. Qxe2 {[%clk 0:00:11]}  dxe2 {[%clk 0:00:14]} 61. Kxe2 {[%clk 0:00:12]}  b4 {[%clk 0:00:14]} 62. Kd2 {[%clk 0:00:12]}  Ka3 {[%clk 0:00:14]} 63. g4 {[%clk 0:00:11]}  b3 {[%clk 0:00:14]} 64. g5 {[%clk 0:00:12]}  b2 {[%clk 0:00:14]} 65. g6 {[%clk 0:00:13]}  b1=Q {[%clk 0:00:15]} 0-1


[Site "https://www.chess.com"]

[Event "Titled Tuesday Blitz February 22 Early 2022"]
[White "Priasmoro, Novendra"]
[Black "Safarli, Eltaj"]
[WhiteFideId "7105029"]
[BlackFideId "13402129"]
[WhiteElo "2309"]
[BlackElo "2634"]
[Result "1-0"]
[Round "10"]
[TimeControl "180+1"]
[Date "2022.02.22"]
[WhiteClock "0:01:02"]
[BlackClock "0:00:15"]

1. e4 {[%clk 0:03:00]}  c5 {[%clk 0:02:59]} 2. Nf3 {[%clk 0:03:00]}  Nf6 {[%clk 0:02:59]} 3. e5 {[%clk 0:02:59]}  Nd5 {[%clk 0:02:59]} 4. c3 {[%clk 0:03:00]}  Nc6 {[%clk 0:02:58]} 5. d4 {[%clk 0:03:00]}  cxd4 {[%clk 0:02:58]} 6. cxd4 {[%clk 0:03:01]}  d6 {[%clk 0:02:58]} 7. exd6 {[%clk 0:02:53]}  Qxd6 {[%clk 0:02:57]} 8. Nc3 {[%clk 0:02:53]}  g6 {[%clk 0:02:56]} 9. Bc4 {[%clk 0:02:52]}  Nb6 {[%clk 0:02:51]} 10. Bb3 {[%clk 0:02:48]}  Bg7 {[%clk 0:02:50]} 11. Be3 {[%clk 0:02:49]}  O-O {[%clk 0:02:49]} 12. h3 {[%clk 0:02:48]}  Na5 {[%clk 0:02:41]} 13. O-O {[%clk 0:02:48]}  Nxb3 {[%clk 0:02:41]} 14. axb3 {[%clk 0:02:47]}  Bf5 {[%clk 0:02:36]} 15. Re1 {[%clk 0:02:44]}  Nd5 {[%clk 0:02:35]} 16. Bg5 {[%clk 0:02:39]}  Rfe8 {[%clk 0:02:30]} 17. Ne5 {[%clk 0:02:18]}  h6 {[%clk 0:02:13]} 18. Bd2 {[%clk 0:02:13]}  Nb6 {[%clk 0:02:06]} 19. Nb5 {[%clk 0:02:10]}  Qd8 {[%clk 0:02:02]} 20. Qf3 {[%clk 0:02:05]}  Be6 {[%clk 0:01:54]} 21. Qxb7 {[%clk 0:02:02]}  Bd5 {[%clk 0:01:53]} 22. Qc7 {[%clk 0:01:57]}  Rc8 {[%clk 0:01:31]} 23. Qxd8 {[%clk 0:01:55]}  Rexd8 {[%clk 0:01:32]} 24. Bc3 {[%clk 0:01:49]}  Bxb3 {[%clk 0:01:13]} 25. Rxa7 {[%clk 0:01:44]}  Nd5 {[%clk 0:01:07]} 26. Ba5 {[%clk 0:01:38]}  Re8 {[%clk 0:01:04]} 27. Nc3 {[%clk 0:01:39]}  Ra8 {[%clk 0:00:57]} 28. Rxa8 {[%clk 0:01:37]}  Rxa8 {[%clk 0:00:58]} 29. Nxd5 {[%clk 0:01:37]}  Bxd5 {[%clk 0:00:59]} 30. Bb4 {[%clk 0:01:36]}  e6 {[%clk 0:00:57]} 31. Bc3 {[%clk 0:01:34]}  Bf8 {[%clk 0:00:55]} 32. Nd3 {[%clk 0:01:34]}  Rb8 {[%clk 0:00:51]} 33. Nf4 {[%clk 0:01:32]}  Bb3 {[%clk 0:00:48]} 34. Ra1 {[%clk 0:01:31]}  Bd6 {[%clk 0:00:48]} 35. Nd3 {[%clk 0:01:32]}  g5 {[%clk 0:00:47]} 36. Ra7 {[%clk 0:01:29]}  Bd5 {[%clk 0:00:45]} 37. Nc5 {[%clk 0:01:29]}  Kg7 {[%clk 0:00:44]} 38. Ra6 {[%clk 0:01:24]}  Be7 {[%clk 0:00:40]} 39. Ra7 {[%clk 0:01:24]}  Bd6 {[%clk 0:00:35]} 40. Nxe6+ {[%clk 0:01:22]}  Kf6 {[%clk 0:00:24]} 41. Nc5 {[%clk 0:01:18]}  Kf5 {[%clk 0:00:21]} 42. Rd7 {[%clk 0:01:15]}  Rb6 {[%clk 0:00:20]} 43. Ba5 {[%clk 0:01:10]}  Rc6 {[%clk 0:00:19]} 44. b4 {[%clk 0:01:10]}  Be6 {[%clk 0:00:19]} 45. Rd8 {[%clk 0:01:09]}  Be7 {[%clk 0:00:17]} 46. Re8 {[%clk 0:01:09]}  Bf6 {[%clk 0:00:17]} 47. g4+ {[%clk 0:01:01]}  Kf4 {[%clk 0:00:15]} 48. b5 {[%clk 0:01:01]}  Rd6 {[%clk 0:00:15]} 49. Bc7 {[%clk 0:01:02]} 1-0


[Site "https://www.chess.com"]

[Event "Titled Tuesday Blitz February 22 Early 2022"]
[White "Prohorov, Olexandr"]
[Black "Vifleemskaia, Svetlana"]
[WhiteFideId "14105578"]
[BlackFideId "4129490"]
[WhiteElo "1993"]
[BlackElo "1901"]
[Result "1/2-1/2"]
[Round "10"]
[TimeControl "180+1"]
[Date "2022.02.22"]
[WhiteClock "0:01:19"]
[BlackClock "0:01:45"]

1. e4 {[%clk 0:03:00]}  e5 {[%clk 0:02:54]} 2. Nf3 {[%clk 0:03:00]}  Nc6 {[%clk 0:02:53]} 3. Bb5 {[%clk 0:02:58]}  a6 {[%clk 0:02:52]} 4. Ba4 {[%clk 0:02:57]}  Nf6 {[%clk 0:02:51]} 5. d4 {[%clk 0:02:53]}  exd4 {[%clk 0:02:48]} 6. e5 {[%clk 0:02:52]}  Ne4 {[%clk 0:02:44]} 7. O-O {[%clk 0:02:34]}  Be7 {[%clk 0:02:36]} 8. Re1 {[%clk 0:02:18]}  Nc5 {[%clk 0:02:34]} 9. Bxc6 {[%clk 0:02:18]}  dxc6 {[%clk 0:02:33]} 10. Nxd4 {[%clk 0:02:13]}  O-O {[%clk 0:02:32]} 11. Nc3 {[%clk 0:02:13]}  Ne6 {[%clk 0:02:29]} 12. Be3 {[%clk 0:02:11]}  Nxd4 {[%clk 0:02:27]} 13. Bxd4 {[%clk 0:02:09]}  c5 {[%clk 0:02:26]} 14. Be3 {[%clk 0:02:07]}  Qxd1 {[%clk 0:02:22]} 15. Raxd1 {[%clk 0:02:07]}  Bf5 {[%clk 0:02:22]} 16. Nd5 {[%clk 0:02:04]}  Bd8 {[%clk 0:02:21]} 17. c4 {[%clk 0:02:01]}  b6 {[%clk 0:02:17]} 18. h3 {[%clk 0:01:52]}  Be6 {[%clk 0:02:16]} 19. b3 {[%clk 0:01:46]}  h6 {[%clk 0:02:14]} 20. Nf4 {[%clk 0:01:27]}  Bc8 {[%clk 0:02:04]} 21. Rd2 {[%clk 0:01:23]}  Bg5 {[%clk 0:01:51]} 22. Nd5 {[%clk 0:01:21]}  Bd8 {[%clk 0:01:46]} 23. Nf4 {[%clk 0:01:20]}  Bg5 {[%clk 0:01:45]} 24. Nd5 {[%clk 0:01:19]}  Bd8 {[%clk 0:01:45]} 25. Nf4 {[%clk 0:01:19]} 1/2-1/2


[Site "https://www.chess.com"]

[Event "Titled Tuesday Blitz February 22 Early 2022"]
[White "Przybylski, Wojciech"]
[Black "Toncheva, Nadya"]
[WhiteFideId "1117599"]
[BlackFideId "2924056"]
[WhiteElo "2133"]
[BlackElo "1920"]
[Result "0-1"]
[Round "10"]
[TimeControl "180+1"]
[Date "2022.02.22"]
[WhiteClock "0:00:03"]
[BlackClock "0:00:09"]

1. e4 {[%clk 0:03:00]}  c5 {[%clk 0:03:00]} 2. Nf3 {[%clk 0:02:56]}  e6 {[%clk 0:03:01]} 3. d4 {[%clk 0:02:55]}  cxd4 {[%clk 0:03:02]} 4. Nxd4 {[%clk 0:02:55]}  Nc6 {[%clk 0:03:02]} 5. Nc3 {[%clk 0:02:55]}  Qc7 {[%clk 0:03:03]} 6. g4 {[%clk 0:02:54]}  a6 {[%clk 0:02:45]} 7. Be3 {[%clk 0:02:41]}  b5 {[%clk 0:02:26]} 8. Nxc6 {[%clk 0:02:36]}  Qxc6 {[%clk 0:02:27]} 9. Ne2 {[%clk 0:02:28]}  Qxe4 {[%clk 0:02:25]} 10. Rg1 {[%clk 0:02:27]}  Qc4 {[%clk 0:02:23]} 11. Nd4 {[%clk 0:02:24]}  Qc7 {[%clk 0:02:18]} 12. g5 {[%clk 0:02:20]}  Bb7 {[%clk 0:02:15]} 13. Qh5 {[%clk 0:02:06]}  Bb4+ {[%clk 0:01:55]} 14. Kd1 {[%clk 0:01:57]}  Ne7 {[%clk 0:01:51]} 15. c3 {[%clk 0:01:46]}  Bd6 {[%clk 0:01:47]} 16. Bd3 {[%clk 0:01:42]}  g6 {[%clk 0:01:30]} 17. Qg4 {[%clk 0:01:30]}  Bxh2 {[%clk 0:01:08]} 18. Re1 {[%clk 0:01:26]}  Bd6 {[%clk 0:01:04]} 19. Rc1 {[%clk 0:01:21]}  Rc8 {[%clk 0:00:49]} 20. Kc2 {[%clk 0:01:12]}  Qa5 {[%clk 0:00:48]} 21. Kb1 {[%clk 0:01:03]}  Bd5 {[%clk 0:00:43]} 22. Nb3 {[%clk 0:01:02]}  Qa4 {[%clk 0:00:30]} 23. Qxa4 {[%clk 0:00:38]}  bxa4 {[%clk 0:00:31]} 24. Nd2 {[%clk 0:00:38]}  a5 {[%clk 0:00:30]} 25. Bb5 {[%clk 0:00:28]}  Bc6 {[%clk 0:00:28]} 26. Ba6 {[%clk 0:00:27]}  Ra8 {[%clk 0:00:27]} 27. Bd3 {[%clk 0:00:25]}  Kd8 {[%clk 0:00:22]} 28. Bd4 {[%clk 0:00:24]}  Re8 {[%clk 0:00:17]} 29. Nc4 {[%clk 0:00:22]}  Bf4 {[%clk 0:00:15]} 30. Rcd1 {[%clk 0:00:19]}  Bxg5 {[%clk 0:00:15]} 31. Bb6+ {[%clk 0:00:17]}  Kc8 {[%clk 0:00:13]} 32. Nd6+ {[%clk 0:00:17]}  Kb8 {[%clk 0:00:14]} 33. Nxe8 {[%clk 0:00:17]}  Kb7 {[%clk 0:00:14]} 34. Be3 {[%clk 0:00:09]}  Bxe3 {[%clk 0:00:13]} 35. Nd6+ {[%clk 0:00:07]}  Kc7 {[%clk 0:00:13]} 36. Rxe3 {[%clk 0:00:06]}  Kxd6 {[%clk 0:00:13]} 37. Bxg6+ {[%clk 0:00:05]}  Kc7 {[%clk 0:00:12]} 38. Bxh7 {[%clk 0:00:05]}  Nd5 {[%clk 0:00:12]} 39. Rg3 {[%clk 0:00:04]}  Rh8 {[%clk 0:00:12]} 40. Bd3 {[%clk 0:00:04]}  Rh2 {[%clk 0:00:12]} 41. f3 {[%clk 0:00:02]}  f5 {[%clk 0:00:12]} 42. f4 {[%clk 0:00:02]}  a3 {[%clk 0:00:12]} 43. Bc2 {[%clk 0:00:01]}  axb2 {[%clk 0:00:12]} 44. Kxb2 {[%clk 0:00:02]}  a4 {[%clk 0:00:12]} 45. a3 {[%clk 0:00:01]}  Kb6 {[%clk 0:00:12]} 46. Rc1 {[%clk 0:00:01]}  Kc5 {[%clk 0:00:12]} 47. Rd3 {[%clk 0:00:01]}  Nxf4 {[%clk 0:00:12]} 48. Rd4 {[%clk 0:00:02]}  Nd5 {[%clk 0:00:12]} 49. Kb1 {[%clk 0:00:01]}  Nxc3+ {[%clk 0:00:12]} 50. Kb2 {[%clk 0:00:02]}  Kxd4 {[%clk 0:00:12]} 51. Re1 {[%clk 0:00:02]}  Be4 {[%clk 0:00:11]} 52. Ka1 {[%clk 0:00:02]}  Rxc2 {[%clk 0:00:11]} 53. Rd1+ {[%clk 0:00:02]}  Nxd1 {[%clk 0:00:09]} 54. Kb1 {[%clk 0:00:02]}  Rb2+ {[%clk 0:00:09]} 55. Ka1 {[%clk 0:00:02]}  Rb3 {[%clk 0:00:08]} 56. Ka2 {[%clk 0:00:03]}  Nc3+ {[%clk 0:00:08]} 57. Ka1 {[%clk 0:00:03]}  Rb1# {[%clk 0:00:09]} 0-1


[Site "https://www.chess.com"]

[Event "Titled Tuesday Blitz February 22 Early 2022"]
[White "Rodchenkov, Vitaly"]
[Black "Zaksaite, Salomeja"]
[WhiteFideId "4152964"]
[BlackFideId "12801496"]
[WhiteElo "2337"]
[BlackElo "2002"]
[Result "1-0"]
[Round "10"]
[TimeControl "180+1"]
[Date "2022.02.22"]
[WhiteClock "0:01:48"]
[BlackClock "0:00:01"]

1. Nf3 {[%clk 0:03:00]}  d5 {[%clk 0:00:15]} 2. c4 {[%clk 0:02:57]}  dxc4 {[%clk 0:00:15]} 3. Nc3 {[%clk 0:02:55]}  g6 {[%clk 0:00:14]} 4. Qa4+ {[%clk 0:02:54]}  Bd7 {[%clk 0:00:14]} 5. Qxc4 {[%clk 0:02:53]}  Bg7 {[%clk 0:00:14]} 6. d4 {[%clk 0:02:53]}  Nf6 {[%clk 0:00:13]} 7. e4 {[%clk 0:02:53]}  O-O {[%clk 0:00:13]} 8. e5 {[%clk 0:02:53]}  Ne8 {[%clk 0:00:13]} 9. Be3 {[%clk 0:02:51]}  a6 {[%clk 0:00:12]} 10. Qb3 {[%clk 0:02:50]}  b5 {[%clk 0:00:11]} 11. Be2 {[%clk 0:02:46]}  c6 {[%clk 0:00:11]} 12. O-O {[%clk 0:02:45]}  Be6 {[%clk 0:00:11]} 13. Qc2 {[%clk 0:02:44]}  Nc7 {[%clk 0:00:11]} 14. Rfd1 {[%clk 0:02:43]}  Nd5 {[%clk 0:00:11]} 15. Ng5 {[%clk 0:02:38]}  Nxe3 {[%clk 0:00:11]} 16. fxe3 {[%clk 0:02:36]}  Bd5 {[%clk 0:00:10]} 17. e4 {[%clk 0:02:35]}  Be6 {[%clk 0:00:11]} 18. Nxe6 {[%clk 0:02:35]}  fxe6 {[%clk 0:00:11]} 19. Bg4 {[%clk 0:02:35]}  Qd7 {[%clk 0:00:11]} 20. d5 {[%clk 0:02:33]}  Kh8 {[%clk 0:00:12]} 21. Bxe6 {[%clk 0:02:33]}  Qc7 {[%clk 0:00:12]} 22. d6 {[%clk 0:02:19]}  Qa7+ {[%clk 0:00:11]} 23. Kh1 {[%clk 0:02:19]}  Bxe5 {[%clk 0:00:11]} 24. d7 {[%clk 0:02:15]}  Rd8 {[%clk 0:00:11]} 25. Qd2 {[%clk 0:02:02]}  Qc7 {[%clk 0:00:11]} 26. Qg5 {[%clk 0:01:55]}  Bxh2 {[%clk 0:00:08]} 27. Qxe7 {[%clk 0:01:51]}  Be5 {[%clk 0:00:01]} 28. Qe8+ {[%clk 0:01:48]} 1-0


[Site "https://www.chess.com"]

[Event "Titled Tuesday Blitz February 22 Early 2022"]
[White "Rustemov, Alexander"]
[Black "Cramling Bellon, Anna"]
[WhiteFideId "4119002"]
[BlackFideId "32009232"]
[WhiteElo "2693"]
[BlackElo "1905"]
[Result "1/2-1/2"]
[Round "10"]
[TimeControl "180+1"]
[Date "2022.02.22"]
[WhiteClock "0:01:16"]
[BlackClock "0:00:37"]

1. d4 {[%clk 0:03:00]}  Nf6 {[%clk 0:02:59]} 2. c4 {[%clk 0:03:00]}  e6 {[%clk 0:02:58]} 3. Nf3 {[%clk 0:02:59]}  d5 {[%clk 0:02:58]} 4. Nc3 {[%clk 0:02:58]}  Be7 {[%clk 0:02:55]} 5. Bg5 {[%clk 0:02:57]}  O-O {[%clk 0:02:55]} 6. e3 {[%clk 0:02:57]}  Nbd7 {[%clk 0:02:53]} 7. Qc2 {[%clk 0:02:55]}  h6 {[%clk 0:02:50]} 8. Bh4 {[%clk 0:02:54]}  b6 {[%clk 0:02:49]} 9. cxd5 {[%clk 0:02:49]}  exd5 {[%clk 0:02:49]} 10. Bd3 {[%clk 0:02:47]}  Bb7 {[%clk 0:02:47]} 11. O-O {[%clk 0:02:46]}  c5 {[%clk 0:02:46]} 12. Rad1 {[%clk 0:02:43]}  Rc8 {[%clk 0:02:22]} 13. Bf5 {[%clk 0:02:41]}  cxd4 {[%clk 0:02:17]} 14. Nxd4 {[%clk 0:02:40]}  Ne4 {[%clk 0:02:02]} 15. Bxe7 {[%clk 0:02:35]}  Qxe7 {[%clk 0:02:03]} 16. Bxe4 {[%clk 0:02:28]}  dxe4 {[%clk 0:02:01]} 17. Nf5 {[%clk 0:02:27]}  Qe6 {[%clk 0:01:47]} 18. Nd6 {[%clk 0:02:22]}  Ba6 {[%clk 0:00:52]} 19. Nxc8 {[%clk 0:02:14]}  Rxc8 {[%clk 0:00:51]} 20. Rfe1 {[%clk 0:02:04]}  Bd3 {[%clk 0:00:51]} 21. Rxd3 {[%clk 0:01:55]}  exd3 {[%clk 0:00:50]} 22. Qxd3 {[%clk 0:01:56]}  Ne5 {[%clk 0:00:47]} 23. Qe2 {[%clk 0:01:29]}  Qg6 {[%clk 0:00:46]} 24. Rd1 {[%clk 0:01:26]}  Nc4 {[%clk 0:00:37]} 25. h3 {[%clk 0:01:16]} 1/2-1/2


[Site "https://www.chess.com"]

[Event "Titled Tuesday Blitz February 22 Early 2022"]
[White "Sadykov, Ramil"]
[Black "Quirke, Jeffrey"]
[WhiteFideId "24113590"]
[BlackFideId "2013029"]
[WhiteElo "2300"]
[BlackElo "2232"]
[Result "1-0"]
[Round "10"]
[TimeControl "180+1"]
[Date "2022.02.22"]
[WhiteClock "0:00:18"]
[BlackClock "0:00:01"]

1. d4 {[%clk 0:03:00]}  Nf6 {[%clk 0:02:59]} 2. Nc3 {[%clk 0:02:59]}  d5 {[%clk 0:02:58]} 3. Bf4 {[%clk 0:02:59]}  a6 {[%clk 0:02:57]} 4. e3 {[%clk 0:02:59]}  e6 {[%clk 0:02:53]} 5. g4 {[%clk 0:02:54]}  c5 {[%clk 0:02:50]} 6. g5 {[%clk 0:02:51]}  Ne4 {[%clk 0:02:49]} 7. Nxe4 {[%clk 0:02:51]}  dxe4 {[%clk 0:02:49]} 8. Bg2 {[%clk 0:02:51]}  Nc6 {[%clk 0:02:28]} 9. Bxe4 {[%clk 0:02:02]}  cxd4 {[%clk 0:02:28]} 10. Bxc6+ {[%clk 0:02:02]}  bxc6 {[%clk 0:02:28]} 11. Qxd4 {[%clk 0:02:02]}  Qxd4 {[%clk 0:02:11]} 12. exd4 {[%clk 0:02:03]}  c5 {[%clk 0:02:09]} 13. Ne2 {[%clk 0:02:01]}  Bb7 {[%clk 0:02:06]} 14. O-O {[%clk 0:01:55]}  h6 {[%clk 0:01:59]} 15. c3 {[%clk 0:01:40]}  Be7 {[%clk 0:01:46]} 16. gxh6 {[%clk 0:01:35]}  gxh6 {[%clk 0:01:46]} 17. f3 {[%clk 0:01:33]}  a5 {[%clk 0:01:20]} 18. Kf2 {[%clk 0:01:28]}  a4 {[%clk 0:01:20]} 19. dxc5 {[%clk 0:01:21]}  Bxc5+ {[%clk 0:01:18]} 20. Be3 {[%clk 0:01:21]}  Be7 {[%clk 0:01:13]} 21. c4 {[%clk 0:01:14]}  h5 {[%clk 0:00:58]} 22. Bd4 {[%clk 0:01:07]}  Rg8 {[%clk 0:00:56]} 23. b3 {[%clk 0:01:06]}  a3 {[%clk 0:00:54]} 24. Rg1 {[%clk 0:01:05]}  Kd7 {[%clk 0:00:53]} 25. Rxg8 {[%clk 0:01:01]}  Rxg8 {[%clk 0:00:52]} 26. Rg1 {[%clk 0:01:02]}  Rxg1 {[%clk 0:00:35]} 27. Nxg1 {[%clk 0:01:00]}  Bh4+ {[%clk 0:00:35]} 28. Ke2 {[%clk 0:00:51]}  Be7 {[%clk 0:00:29]} 29. Nh3 {[%clk 0:00:48]}  f6 {[%clk 0:00:21]} 30. Nf2 {[%clk 0:00:43]}  e5 {[%clk 0:00:21]} 31. Bc3 {[%clk 0:00:41]}  Ke6 {[%clk 0:00:21]} 32. b4 {[%clk 0:00:36]}  f5 {[%clk 0:00:19]} 33. b5 {[%clk 0:00:35]}  Bc5 {[%clk 0:00:16]} 34. Nd3 {[%clk 0:00:34]}  Bg1 {[%clk 0:00:14]} 35. Bxe5 {[%clk 0:00:33]}  h4 {[%clk 0:00:04]} 36. Bc7 {[%clk 0:00:29]}  Bd4 {[%clk 0:00:01]} 37. Bd8 {[%clk 0:00:18]} 1-0


[Site "https://www.chess.com"]